[Event "Titled Tuesday Blitz July 4 Early 2023"]
[White "HamedWafa4"]
[Black "Grandelius, Nils"]
[BlackFideId "1710400"]
[WhiteElo "2567"]
[BlackElo "2894"]
[Result "0-1"]
[Round "2"]
[TimeControl "180+2"]
[Date "2023.07.04"]
[WhiteClock "0:00:00"]
[BlackClock "0:00:35"]
[Board "35"]

1. e4 {[%clk 0:03:00]}  c6 {[%clk 0:03:00]} 2. d4 {[%clk 0:02:57]}  d5 {[%clk 0:03:01]} 3. e5 {[%clk 0:02:57]}  c5 {[%clk 0:03:01]} 4. Nf3 {[%clk 0:02:55]}  cxd4 {[%clk 0:02:57]} 5. Nxd4 {[%clk 0:02:54]}  Nc6 {[%clk 0:02:57]} 6. c4 {[%clk 0:02:52]}  e6 {[%clk 0:02:57]} 7. Nc3 {[%clk 0:02:51]}  Bc5 {[%clk 0:02:54]} 8. Nxc6 {[%clk 0:02:44]}  bxc6 {[%clk 0:02:55]} 9. Bd3 {[%clk 0:02:36]}  Ne7 {[%clk 0:02:52]} 10. O-O {[%clk 0:02:31]}  Ng6 {[%clk 0:02:46]} 11. Qh5 {[%clk 0:02:11]}  Qh4 {[%clk 0:02:39]} 12. Qxh4 {[%clk 0:02:01]}  Nxh4 {[%clk 0:02:40]} 13. Na4 {[%clk 0:01:57]}  Bd4 {[%clk 0:02:38]} 14. Re1 {[%clk 0:01:52]}  Ng6 {[%clk 0:02:28]} 15. Be3 {[%clk 0:01:17]}  Bxe5 {[%clk 0:02:14]} 16. Bc5 {[%clk 0:01:14]}  Bf6 {[%clk 0:02:07]} 17. Rac1 {[%clk 0:01:01]}  Bd7 {[%clk 0:01:32]} 18. g3 {[%clk 0:00:44]}  Be7 {[%clk 0:01:18]} 19. Bxe7 {[%clk 0:00:42]}  Kxe7 {[%clk 0:01:18]} 20. Nc5 {[%clk 0:00:23]}  Rhc8 {[%clk 0:01:12]} 21. f4 {[%clk 0:00:22]}  Kd6 {[%clk 0:01:10]} 22. b4 {[%clk 0:00:20]}  a5 {[%clk 0:01:10]} 23. Nb7+ {[%clk 0:00:20]}  Kc7 {[%clk 0:01:05]} 24. Nxa5 {[%clk 0:00:21]}  Rcb8 {[%clk 0:00:54]} 25. a3 {[%clk 0:00:21]}  Kd6 {[%clk 0:00:55]} 26. Bxg6 {[%clk 0:00:17]}  hxg6 {[%clk 0:00:55]} 27. c5+ {[%clk 0:00:18]}  Kc7 {[%clk 0:00:54]} 28. Kf2 {[%clk 0:00:18]}  f6 {[%clk 0:00:53]} 29. Kf3 {[%clk 0:00:18]}  Re8 {[%clk 0:00:51]} 30. Rc3 {[%clk 0:00:16]}  e5 {[%clk 0:00:51]} 31. Rce3 {[%clk 0:00:15]}  e4+ {[%clk 0:00:48]} 32. Kf2 {[%clk 0:00:15]}  g5 {[%clk 0:00:46]} 33. fxg5 {[%clk 0:00:14]}  fxg5 {[%clk 0:00:47]} 34. Rd1 {[%clk 0:00:15]}  Rf8+ {[%clk 0:00:41]} 35. Kg2 {[%clk 0:00:15]}  Bg4 {[%clk 0:00:40]} 36. Rd2 {[%clk 0:00:14]}  Rf6 {[%clk 0:00:39]} 37. h3 {[%clk 0:00:12]}  Bf3+ {[%clk 0:00:38]} 38. Kh2 {[%clk 0:00:13]}  Rh8 {[%clk 0:00:38]} 39. Nb3 {[%clk 0:00:07]}  Rxh3+ {[%clk 0:00:37]} 40. Kg1 {[%clk 0:00:06]}  Rh1+ {[%clk 0:00:33]} 41. Kf2 {[%clk 0:00:06]}  Bg4+ {[%clk 0:00:34]} 42. Kg2 {[%clk 0:00:00]}  Rfh6 {[%clk 0:00:35]} 0-1


[Site "https://www.chess.com"]

[Event "Titled Tuesday Blitz July 4 Early 2023"]
[White "Thecourseoisildur"]
[Black "Samadov, Read"]
[BlackFideId "13417444"]
[WhiteElo "2557"]
[BlackElo "2852"]
[Result "0-1"]
[Round "2"]
[TimeControl "180+2"]
[Date "2023.07.04"]
[WhiteClock "0:00:09"]
[BlackClock "0:00:53"]
[Board "46"]

1. e4 {[%clk 0:02:51]}  c5 {[%clk 0:02:59]} 2. Nf3 {[%clk 0:02:50]}  d6 {[%clk 0:03:00]} 3. d4 {[%clk 0:02:51]}  cxd4 {[%clk 0:03:01]} 4. Nxd4 {[%clk 0:02:49]}  Nf6 {[%clk 0:03:02]} 5. Nc3 {[%clk 0:02:47]}  a6 {[%clk 0:03:02]} 6. Be2 {[%clk 0:02:48]}  e5 {[%clk 0:03:01]} 7. Nb3 {[%clk 0:02:49]}  Be7 {[%clk 0:03:00]} 8. O-O {[%clk 0:02:48]}  O-O {[%clk 0:02:59]} 9. Qd3 {[%clk 0:02:49]}  Be6 {[%clk 0:02:56]} 10. Bd2 {[%clk 0:02:49]}  Nbd7 {[%clk 0:02:45]} 11. Nd5 {[%clk 0:02:49]}  Bxd5 {[%clk 0:02:43]} 12. exd5 {[%clk 0:02:50]}  Rc8 {[%clk 0:02:42]} 13. Rac1 {[%clk 0:02:46]}  Re8 {[%clk 0:02:38]} 14. c4 {[%clk 0:02:29]}  b6 {[%clk 0:02:32]} 15. a4 {[%clk 0:02:19]}  a5 {[%clk 0:02:30]} 16. Na1 {[%clk 0:02:19]}  Nc5 {[%clk 0:02:29]} 17. Qc2 {[%clk 0:02:12]}  Qd7 {[%clk 0:02:26]} 18. b3 {[%clk 0:01:57]}  Nfe4 {[%clk 0:02:26]} 19. Be3 {[%clk 0:01:53]}  f5 {[%clk 0:02:26]} 20. Bd3 {[%clk 0:01:47]}  Nxd3 {[%clk 0:02:16]} 21. Qxd3 {[%clk 0:01:48]}  Nc5 {[%clk 0:02:14]} 22. Bxc5 {[%clk 0:01:47]}  bxc5 {[%clk 0:02:14]} 23. Nc2 {[%clk 0:01:47]}  e4 {[%clk 0:02:14]} 24. Qg3 {[%clk 0:01:43]}  Bf6 {[%clk 0:02:13]} 25. Rfd1 {[%clk 0:01:18]}  Be5 {[%clk 0:02:10]} 26. f4 {[%clk 0:01:18]}  Bf6 {[%clk 0:02:07]} 27. Ne3 {[%clk 0:01:17]}  Rb8 {[%clk 0:02:06]} 28. Rb1 {[%clk 0:01:17]}  Rb6 {[%clk 0:01:58]} 29. Qh3 {[%clk 0:01:13]}  Bd4 {[%clk 0:01:51]} 30. Kh1 {[%clk 0:01:12]}  g6 {[%clk 0:01:42]} 31. Nc2 {[%clk 0:01:11]}  Bf6 {[%clk 0:01:41]} 32. Qe3 {[%clk 0:01:03]}  Reb8 {[%clk 0:01:39]} 33. h3 {[%clk 0:00:55]}  Qb7 {[%clk 0:01:38]} 34. Na1 {[%clk 0:00:45]}  Bxa1 {[%clk 0:01:36]} 35. Rxa1 {[%clk 0:00:46]}  Rxb3 {[%clk 0:01:36]} 36. Qe1 {[%clk 0:00:46]}  Qb4 {[%clk 0:01:34]} 37. Qh4 {[%clk 0:00:45]}  Qb7 {[%clk 0:01:10]} 38. Qf6 {[%clk 0:00:44]}  Qd7 {[%clk 0:01:10]} 39. Re1 {[%clk 0:00:35]}  Rf8 {[%clk 0:01:06]} 40. Qh4 {[%clk 0:00:35]}  Rb2 {[%clk 0:01:02]} 41. Rab1 {[%clk 0:00:35]}  Rfb8 {[%clk 0:01:02]} 42. Rxb2 {[%clk 0:00:35]}  Rxb2 {[%clk 0:01:03]} 43. Qf6 {[%clk 0:00:34]}  Rb4 {[%clk 0:01:02]} 44. g4 {[%clk 0:00:22]}  Rxc4 {[%clk 0:00:56]} 45. gxf5 {[%clk 0:00:16]}  Qxf5 {[%clk 0:00:56]} 46. Qd8+ {[%clk 0:00:16]}  Kg7 {[%clk 0:00:55]} 47. Qe7+ {[%clk 0:00:16]}  Kh6 {[%clk 0:00:55]} 48. Qh4+ {[%clk 0:00:17]}  Qh5 {[%clk 0:00:55]} 49. Qf6 {[%clk 0:00:12]}  Qxh3+ {[%clk 0:00:55]} 50. Kg1 {[%clk 0:00:13]}  Qg3+ {[%clk 0:00:55]} 51. Kf1 {[%clk 0:00:13]}  Rc2 {[%clk 0:00:53]} 52. Qf8+ {[%clk 0:00:12]}  Kh5 {[%clk 0:00:53]} 53. Re2 {[%clk 0:00:09]}  Rc1+ {[%clk 0:00:53]} 0-1


[Site "https://www.chess.com"]

[Event "Titled Tuesday Blitz July 4 Early 2023"]
[White "The_Sherman_Variation"]
[Black "Harshavardhan G B"]
[BlackFideId "25059009"]
[WhiteElo "2553"]
[BlackElo "2838"]
[Result "1-0"]
[Round "2"]
[TimeControl "180+2"]
[Date "2023.07.04"]
[WhiteClock "0:00:20"]
[BlackClock "0:00:24"]
[Board "48"]

1. Nf3 {[%clk 0:03:00]}  Nf6 {[%clk 0:02:59]} 2. b4 {[%clk 0:03:00]}  d5 {[%clk 0:02:58]} 3. Bb2 {[%clk 0:03:00]}  g6 {[%clk 0:02:55]} 4. e3 {[%clk 0:02:58]}  Bg7 {[%clk 0:02:55]} 5. Be2 {[%clk 0:02:58]}  O-O {[%clk 0:02:55]} 6. O-O {[%clk 0:02:58]}  Nbd7 {[%clk 0:02:54]} 7. a3 {[%clk 0:02:58]}  c6 {[%clk 0:02:54]} 8. d4 {[%clk 0:02:54]}  Ne4 {[%clk 0:02:54]} 9. Nbd2 {[%clk 0:02:54]}  f5 {[%clk 0:02:54]} 10. c4 {[%clk 0:02:52]}  e6 {[%clk 0:02:54]} 11. Rc1 {[%clk 0:02:50]}  Qe7 {[%clk 0:02:38]} 12. Ne1 {[%clk 0:02:41]}  g5 {[%clk 0:02:31]} 13. f3 {[%clk 0:02:39]}  Nxd2 {[%clk 0:02:31]} 14. Qxd2 {[%clk 0:02:40]}  Rf6 {[%clk 0:02:26]} 15. Nd3 {[%clk 0:02:27]}  Rh6 {[%clk 0:02:23]} 16. Nf2 {[%clk 0:02:10]}  Nf6 {[%clk 0:02:18]} 17. Bd3 {[%clk 0:02:05]}  Qf7 {[%clk 0:02:14]} 18. e4 {[%clk 0:01:59]}  f4 {[%clk 0:02:08]} 19. e5 {[%clk 0:01:56]}  Ne8 {[%clk 0:02:03]} 20. Ng4 {[%clk 0:01:56]}  Rh5 {[%clk 0:02:02]} 21. b5 {[%clk 0:01:42]}  Bd7 {[%clk 0:02:01]} 22. a4 {[%clk 0:01:41]}  dxc4 {[%clk 0:01:56]} 23. Bxc4 {[%clk 0:01:41]}  Nc7 {[%clk 0:01:57]} 24. Ba3 {[%clk 0:01:27]}  Rh4 {[%clk 0:01:54]} 25. Bd6 {[%clk 0:01:23]}  Ne8 {[%clk 0:01:53]} 26. Bc5 {[%clk 0:01:21]}  Nc7 {[%clk 0:01:37]} 27. Rb1 {[%clk 0:01:13]}  Nd5 {[%clk 0:01:36]} 28. Bxd5 {[%clk 0:01:11]}  cxd5 {[%clk 0:01:29]} 29. a5 {[%clk 0:01:08]}  h5 {[%clk 0:01:26]} 30. Nf2 {[%clk 0:01:06]}  g4 {[%clk 0:01:16]} 31. Nd3 {[%clk 0:00:55]}  Bh6 {[%clk 0:01:15]} 32. Qf2 {[%clk 0:00:49]}  Bg5 {[%clk 0:01:14]} 33. fxg4 {[%clk 0:00:46]}  Rxg4 {[%clk 0:01:12]} 34. h3 {[%clk 0:00:42]}  Rg3 {[%clk 0:01:10]} 35. Nxf4 {[%clk 0:00:36]}  h4 {[%clk 0:01:06]} 36. a6 {[%clk 0:00:26]}  b6 {[%clk 0:01:06]} 37. Bd6 {[%clk 0:00:25]}  Rc8 {[%clk 0:01:05]} 38. Rb2 {[%clk 0:00:22]}  Qh7 {[%clk 0:00:46]} 39. Kh2 {[%clk 0:00:21]}  Rgc3 {[%clk 0:00:26]} 40. Ne2 {[%clk 0:00:20]}  Rc2 {[%clk 0:00:23]} 41. Rxc2 {[%clk 0:00:20]}  Rxc2 {[%clk 0:00:24]} 42. Qf8# {[%clk 0:00:20]} 1-0


[Site "https://www.chess.com"]

[Event "Titled Tuesday Blitz July 4 Early 2023"]
[White "demon64fields"]
[Black "Degenbaev, Aziz"]
[BlackFideId "13802640"]
[WhiteElo "2827"]
[BlackElo "2548"]
[Result "1-0"]
[Round "2"]
[TimeControl "180+2"]
[Date "2023.07.04"]
[WhiteClock "0:01:46"]
[BlackClock "0:00:14"]
[Board "50"]

1. Nf3 {[%clk 0:02:59]}  d5 {[%clk 0:02:58]} 2. g3 {[%clk 0:03:00]}  Nf6 {[%clk 0:02:55]} 3. Bg2 {[%clk 0:03:00]}  c6 {[%clk 0:02:54]} 4. O-O {[%clk 0:03:00]}  Bg4 {[%clk 0:02:54]} 5. Ne5 {[%clk 0:03:01]}  Bf5 {[%clk 0:02:55]} 6. d4 {[%clk 0:03:01]}  e6 {[%clk 0:02:55]} 7. c4 {[%clk 0:03:02]}  Nbd7 {[%clk 0:02:56]} 8. Nc3 {[%clk 0:03:02]}  Bd6 {[%clk 0:02:55]} 9. Bf4 {[%clk 0:03:03]}  Qc7 {[%clk 0:02:56]} 10. cxd5 {[%clk 0:03:02]}  exd5 {[%clk 0:02:55]} 11. Rc1 {[%clk 0:03:03]}  Qb8 {[%clk 0:02:48]} 12. Qb3 {[%clk 0:02:59]}  O-O {[%clk 0:02:45]} 13. Nxd7 {[%clk 0:02:56]}  Nxd7 {[%clk 0:02:46]} 14. Bxd6 {[%clk 0:02:48]}  Qxd6 {[%clk 0:02:46]} 15. Qxb7 {[%clk 0:02:46]}  Rfb8 {[%clk 0:02:36]} 16. Qa6 {[%clk 0:02:45]}  Rxb2 {[%clk 0:02:36]} 17. Nxd5 {[%clk 0:02:42]}  Nb6 {[%clk 0:02:15]} 18. Rxc6 {[%clk 0:02:38]}  Qd8 {[%clk 0:01:44]} 19. Rxb6 {[%clk 0:02:38]}  axb6 {[%clk 0:01:42]} 20. Ne7+ {[%clk 0:02:37]}  Kf8 {[%clk 0:01:31]} 21. Qxa8 {[%clk 0:02:38]}  Qxa8 {[%clk 0:01:31]} 22. Bxa8 {[%clk 0:02:38]}  Kxe7 {[%clk 0:01:32]} 23. e4 {[%clk 0:02:32]}  Rxa2 {[%clk 0:01:30]} 24. Bd5 {[%clk 0:02:33]}  Ra5 {[%clk 0:01:30]} 25. Rc1 {[%clk 0:02:22]}  Bh3 {[%clk 0:01:15]} 26. f3 {[%clk 0:02:22]}  Ra4 {[%clk 0:00:53]} 27. Rc7+ {[%clk 0:02:22]}  Bd7 {[%clk 0:00:53]} 28. Bxf7 {[%clk 0:02:12]}  Rxd4 {[%clk 0:00:51]} 29. Bd5 {[%clk 0:02:10]}  Kd6 {[%clk 0:00:48]} 30. Rb7 {[%clk 0:02:09]}  b5 {[%clk 0:00:48]} 31. h4 {[%clk 0:02:09]}  b4 {[%clk 0:00:48]} 32. Kf2 {[%clk 0:02:09]}  Rd2+ {[%clk 0:00:46]} 33. Ke3 {[%clk 0:02:09]}  Rb2 {[%clk 0:00:46]} 34. g4 {[%clk 0:02:06]}  h6 {[%clk 0:00:47]} 35. g5 {[%clk 0:02:05]}  hxg5 {[%clk 0:00:46]} 36. hxg5 {[%clk 0:02:06]}  Rb1 {[%clk 0:00:44]} 37. f4 {[%clk 0:02:06]}  Rb2 {[%clk 0:00:42]} 38. e5+ {[%clk 0:02:05]}  Kxd5 {[%clk 0:00:39]} 39. Rxd7+ {[%clk 0:02:05]}  Ke6 {[%clk 0:00:34]} 40. Rxg7 {[%clk 0:02:06]}  b3 {[%clk 0:00:35]} 41. Rg6+ {[%clk 0:01:59]}  Kd5 {[%clk 0:00:30]} 42. Rb6 {[%clk 0:01:56]}  Rb1 {[%clk 0:00:29]} 43. g6 {[%clk 0:01:54]}  Rg1 {[%clk 0:00:24]} 44. Kf3 {[%clk 0:01:46]}  Rf1+ {[%clk 0:00:20]} 45. Kg4 {[%clk 0:01:45]}  Ke4 {[%clk 0:00:19]} 46. Rb4+ {[%clk 0:01:45]}  Kd5 {[%clk 0:00:14]} 47. Rxb3 {[%clk 0:01:46]} 1-0


[Site "https://www.chess.com"]

[Event "Titled Tuesday Blitz July 4 Early 2023"]
[White "Hajiyev, Kanan"]
[Black "Rahman, Masruri"]
[WhiteFideId "13404148"]
[BlackFideId "7101163"]
[WhiteElo "2547"]
[BlackElo "2822"]
[Result "0-1"]
[Round "2"]
[TimeControl "180+2"]
[Date "2023.07.04"]
[WhiteClock "0:01:04"]
[BlackClock "0:00:54"]
[Board "51"]

1. d4 {[%clk 0:03:00]}  e6 {[%clk 0:02:59]} 2. c4 {[%clk 0:02:59]}  Nf6 {[%clk 0:02:59]} 3. Nc3 {[%clk 0:02:57]}  Bb4 {[%clk 0:02:59]} 4. Qc2 {[%clk 0:02:58]}  Nc6 {[%clk 0:02:58]} 5. Nf3 {[%clk 0:02:57]}  d6 {[%clk 0:02:59]} 6. Bg5 {[%clk 0:02:47]}  h6 {[%clk 0:02:59]} 7. Bd2 {[%clk 0:02:38]}  O-O {[%clk 0:02:57]} 8. e4 {[%clk 0:02:35]}  e5 {[%clk 0:02:57]} 9. d5 {[%clk 0:02:35]}  Nd4 {[%clk 0:02:31]} 10. Nxd4 {[%clk 0:02:15]}  exd4 {[%clk 0:02:32]} 11. Nb1 {[%clk 0:02:16]}  Bxd2+ {[%clk 0:02:13]} 12. Nxd2 {[%clk 0:02:17]}  c5 {[%clk 0:02:09]} 13. Bd3 {[%clk 0:02:03]}  Nh5 {[%clk 0:02:04]} 14. O-O-O {[%clk 0:01:55]}  Nf4 {[%clk 0:01:57]} 15. g3 {[%clk 0:01:52]}  Nxd3+ {[%clk 0:01:52]} 16. Qxd3 {[%clk 0:01:53]}  f5 {[%clk 0:01:53]} 17. Rde1 {[%clk 0:01:23]}  fxe4 {[%clk 0:01:46]} 18. Nxe4 {[%clk 0:01:24]}  Bf5 {[%clk 0:01:47]} 19. f4 {[%clk 0:01:24]}  Re8 {[%clk 0:01:41]} 20. Qf3 {[%clk 0:01:24]}  Qe7 {[%clk 0:01:30]} 21. Nf2 {[%clk 0:01:13]}  Qxe1+ {[%clk 0:01:28]} 22. Rxe1 {[%clk 0:01:14]}  Rxe1+ {[%clk 0:01:28]} 23. Kd2 {[%clk 0:01:14]}  Rae8 {[%clk 0:01:25]} 24. g4 {[%clk 0:01:14]}  R8e3 {[%clk 0:00:54]} 25. Qg2 {[%clk 0:01:04]}  R3e2# {[%clk 0:00:54]} 0-1


[Site "https://www.chess.com"]

[Event "Titled Tuesday Blitz July 4 Early 2023"]
[White "Ozates, Tuna"]
[Black "Kushko, Dmitriy"]
[WhiteFideId "6354521"]
[BlackFideId "14162261"]
[WhiteElo "2546"]
[BlackElo "2817"]
[Result "1-0"]
[Round "2"]
[TimeControl "180+2"]
[Date "2023.07.04"]
[WhiteClock "0:00:51"]
[BlackClock "0:00:00"]
[Board "53"]

1. e4 {[%clk 0:02:58]}  g6 {[%clk 0:03:00]} 2. d4 {[%clk 0:02:57]}  Bg7 {[%clk 0:03:00]} 3. Nc3 {[%clk 0:02:57]}  d6 {[%clk 0:03:00]} 4. Be3 {[%clk 0:02:57]}  a6 {[%clk 0:03:00]} 5. Qd2 {[%clk 0:02:56]}  b5 {[%clk 0:03:00]} 6. f3 {[%clk 0:02:56]}  Bb7 {[%clk 0:03:00]} 7. h4 {[%clk 0:02:56]}  h6 {[%clk 0:03:00]} 8. g4 {[%clk 0:02:52]}  Nd7 {[%clk 0:02:59]} 9. Nh3 {[%clk 0:02:50]}  e6 {[%clk 0:02:59]} 10. Nf4 {[%clk 0:02:50]}  Ne7 {[%clk 0:02:58]} 11. Bh3 {[%clk 0:02:47]}  c5 {[%clk 0:02:40]} 12. Nce2 {[%clk 0:02:47]}  cxd4 {[%clk 0:02:10]} 13. Nxd4 {[%clk 0:02:38]}  Bxd4 {[%clk 0:01:45]} 14. Bxd4 {[%clk 0:02:13]}  e5 {[%clk 0:01:45]} 15. Bc3 {[%clk 0:02:13]}  b4 {[%clk 0:01:44]} 16. Bxb4 {[%clk 0:02:14]}  exf4 {[%clk 0:01:44]} 17. Bxd6 {[%clk 0:02:14]}  Nc6 {[%clk 0:01:17]} 18. O-O-O {[%clk 0:02:10]}  Qa5 {[%clk 0:01:05]} 19. Qxa5 {[%clk 0:02:02]}  Nxa5 {[%clk 0:01:05]} 20. Bxf4 {[%clk 0:02:03]}  Nc6 {[%clk 0:00:37]} 21. g5 {[%clk 0:01:57]}  Nde5 {[%clk 0:00:37]} 22. Bxe5 {[%clk 0:01:55]}  Nxe5 {[%clk 0:00:37]} 23. f4 {[%clk 0:01:56]}  Nc4 {[%clk 0:00:28]} 24. Rd7 {[%clk 0:01:53]}  Bc8 {[%clk 0:00:24]} 25. Rc7 {[%clk 0:01:53]}  Bxh3 {[%clk 0:00:20]} 26. Rxh3 {[%clk 0:01:54]}  Nd6 {[%clk 0:00:19]} 27. a4 {[%clk 0:01:46]}  hxg5 {[%clk 0:00:18]} 28. fxg5 {[%clk 0:01:46]}  O-O {[%clk 0:00:18]} 29. e5 {[%clk 0:01:44]}  Nf5 {[%clk 0:00:16]} 30. h5 {[%clk 0:01:44]}  gxh5 {[%clk 0:00:16]} 31. Rxh5 {[%clk 0:01:44]}  Rae8 {[%clk 0:00:15]} 32. Rc6 {[%clk 0:01:37]}  Re6 {[%clk 0:00:15]} 33. Rxe6 {[%clk 0:01:32]}  fxe6 {[%clk 0:00:15]} 34. Rh3 {[%clk 0:01:28]}  Rc8 {[%clk 0:00:14]} 35. Rb3 {[%clk 0:01:26]}  Rc6 {[%clk 0:00:13]} 36. Rb7 {[%clk 0:01:23]}  Kf8 {[%clk 0:00:11]} 37. b4 {[%clk 0:01:20]}  Ne7 {[%clk 0:00:07]} 38. b5 {[%clk 0:01:18]}  axb5 {[%clk 0:00:07]} 39. axb5 {[%clk 0:01:19]}  Rc5 {[%clk 0:00:07]} 40. b6 {[%clk 0:01:12]}  Rxe5 {[%clk 0:00:07]} 41. Rb8+ {[%clk 0:01:10]}  Kf7 {[%clk 0:00:07]} 42. b7 {[%clk 0:01:10]}  Rb5 {[%clk 0:00:04]} 43. c4 {[%clk 0:01:09]}  Rb4 {[%clk 0:00:04]} 44. Kd2 {[%clk 0:01:03]}  Nc6 {[%clk 0:00:04]} 45. Rc8 {[%clk 0:00:59]}  Rxb7 {[%clk 0:00:03]} 46. Rxc6 {[%clk 0:01:00]}  Kg6 {[%clk 0:00:02]} 47. Rxe6+ {[%clk 0:00:59]}  Kxg5 {[%clk 0:00:02]} 48. Kc3 {[%clk 0:00:58]}  Kf5 {[%clk 0:00:02]} 49. Re1 {[%clk 0:00:57]}  Kf6 {[%clk 0:00:02]} 50. Kd4 {[%clk 0:00:57]}  Rh7 {[%clk 0:00:02]} 51. Kd5 {[%clk 0:00:57]}  Rh5+ {[%clk 0:00:02]} 52. Kd6 {[%clk 0:00:57]}  Rh2 {[%clk 0:00:03]} 53. c5 {[%clk 0:00:57]}  Rd2+ {[%clk 0:00:03]} 54. Kc7 {[%clk 0:00:58]}  Rd3 {[%clk 0:00:03]} 55. c6 {[%clk 0:00:58]}  Rd4 {[%clk 0:00:03]} 56. Kc8 {[%clk 0:00:58]}  Rd5 {[%clk 0:00:03]} 57. c7 {[%clk 0:00:58]}  Kf7 {[%clk 0:00:00]} 58. Rb1 {[%clk 0:00:51]} 1-0


[Site "https://www.chess.com"]

[Event "Titled Tuesday Blitz July 4 Early 2023"]
[White "Stribuk, Artiom"]
[Black "Suarez Uriel, Adrian"]
[WhiteFideId "13515659"]
[BlackFideId "22230874"]
[WhiteElo "2817"]
[BlackElo "2544"]
[Result "1-0"]
[Round "2"]
[TimeControl "180+2"]
[Date "2023.07.04"]
[WhiteClock "0:00:17"]
[BlackClock "0:01:28"]
[Board "54"]

1. d4 {[%clk 0:03:00]}  Nf6 {[%clk 0:03:00]} 2. c4 {[%clk 0:03:01]}  b6 {[%clk 0:03:00]} 3. f3 {[%clk 0:03:00]}  Ba6 {[%clk 0:02:51]} 4. e4 {[%clk 0:02:57]}  e6 {[%clk 0:02:51]} 5. Nc3 {[%clk 0:02:56]}  Be7 {[%clk 0:02:48]} 6. Bd3 {[%clk 0:02:50]}  O-O {[%clk 0:02:48]} 7. e5 {[%clk 0:02:06]}  Ne8 {[%clk 0:02:46]} 8. f4 {[%clk 0:02:06]}  f5 {[%clk 0:02:45]} 9. Nf3 {[%clk 0:02:05]}  d5 {[%clk 0:02:44]} 10. cxd5 {[%clk 0:01:55]}  Bxd3 {[%clk 0:02:41]} 11. Qxd3 {[%clk 0:01:56]}  exd5 {[%clk 0:02:41]} 12. Be3 {[%clk 0:01:57]}  c6 {[%clk 0:02:41]} 13. O-O-O {[%clk 0:01:57]}  Nc7 {[%clk 0:02:41]} 14. h3 {[%clk 0:01:56]}  Qd7 {[%clk 0:02:26]} 15. g4 {[%clk 0:01:55]}  a5 {[%clk 0:02:26]} 16. Ne2 {[%clk 0:01:43]}  Nba6 {[%clk 0:02:21]} 17. a3 {[%clk 0:01:30]}  c5 {[%clk 0:02:19]} 18. Ng3 {[%clk 0:01:30]}  c4 {[%clk 0:02:11]} 19. Qc2 {[%clk 0:01:30]}  g6 {[%clk 0:02:06]} 20. gxf5 {[%clk 0:01:11]}  gxf5 {[%clk 0:02:07]} 21. Rhg1 {[%clk 0:01:11]}  Kh8 {[%clk 0:02:07]} 22. Nh5 {[%clk 0:01:11]}  c3 {[%clk 0:02:00]} 23. Qxc3 {[%clk 0:00:29]}  Nb5 {[%clk 0:02:00]} 24. Qd3 {[%clk 0:00:29]}  Rac8+ {[%clk 0:01:58]} 25. Kd2 {[%clk 0:00:25]}  Bxa3 {[%clk 0:01:45]} 26. Nf6 {[%clk 0:00:18]}  Bb4+ {[%clk 0:01:43]} 27. Ke2 {[%clk 0:00:18]}  Qe6 {[%clk 0:01:42]} 28. Ng5 {[%clk 0:00:19]}  Qc6 {[%clk 0:01:40]} 29. Rc1 {[%clk 0:00:18]}  Nxd4+ {[%clk 0:01:34]} 30. Bxd4 {[%clk 0:00:16]}  Qxc1 {[%clk 0:01:35]} 31. Rxc1 {[%clk 0:00:16]}  Rxc1 {[%clk 0:01:28]} 32. Qxf5 {[%clk 0:00:17]} 1-0


[Site "https://www.chess.com"]

[Event "Titled Tuesday Blitz July 4 Early 2023"]
[White "Ljukin, Sergei"]
[Black "Goltsev, Dmitry"]
[WhiteFideId "14102200"]
[BlackFideId "24176710"]
[WhiteElo "2543"]
[BlackElo "2806"]
[Result "0-1"]
[Round "2"]
[TimeControl "180+2"]
[Date "2023.07.04"]
[WhiteClock "0:00:08"]
[BlackClock "0:02:03"]
[Board "55"]

1. e4 {[%clk 0:03:00]}  e6 {[%clk 0:03:00]} 2. d4 {[%clk 0:03:00]}  d5 {[%clk 0:03:01]} 3. Nc3 {[%clk 0:03:00]}  c5 {[%clk 0:03:01]} 4. exd5 {[%clk 0:02:59]}  exd5 {[%clk 0:03:02]} 5. Nf3 {[%clk 0:03:00]}  Nf6 {[%clk 0:03:01]} 6. Be3 {[%clk 0:02:57]}  cxd4 {[%clk 0:03:01]} 7. Nxd4 {[%clk 0:02:57]}  a6 {[%clk 0:03:00]} 8. Bd3 {[%clk 0:02:52]}  Bd6 {[%clk 0:02:59]} 9. O-O {[%clk 0:02:47]}  O-O {[%clk 0:02:59]} 10. Nf5 {[%clk 0:02:45]}  Bxf5 {[%clk 0:02:56]} 11. Bxf5 {[%clk 0:02:44]}  Nc6 {[%clk 0:02:57]} 12. Bg5 {[%clk 0:02:41]}  h6 {[%clk 0:02:48]} 13. Bxf6 {[%clk 0:02:21]}  Qxf6 {[%clk 0:02:49]} 14. Bd3 {[%clk 0:02:06]}  Rad8 {[%clk 0:02:45]} 15. Qh5 {[%clk 0:01:55]}  Be5 {[%clk 0:02:38]} 16. Rad1 {[%clk 0:01:53]}  Bxc3 {[%clk 0:02:33]} 17. bxc3 {[%clk 0:01:52]}  Qxc3 {[%clk 0:02:34]} 18. Rfe1 {[%clk 0:01:50]}  Rfe8 {[%clk 0:02:30]} 19. Rxe8+ {[%clk 0:01:42]}  Rxe8 {[%clk 0:02:30]} 20. Qxd5 {[%clk 0:01:33]}  g6 {[%clk 0:02:29]} 21. g3 {[%clk 0:01:26]}  Qe5 {[%clk 0:02:26]} 22. Bc4 {[%clk 0:01:10]}  Qxd5 {[%clk 0:02:22]} 23. Bxd5 {[%clk 0:01:10]}  Rd8 {[%clk 0:02:16]} 24. c4 {[%clk 0:00:51]}  Kf8 {[%clk 0:02:16]} 25. Rb1 {[%clk 0:00:48]}  Na5 {[%clk 0:02:12]} 26. Kg2 {[%clk 0:00:38]}  b5 {[%clk 0:02:10]} 27. Rb4 {[%clk 0:00:16]}  Kg7 {[%clk 0:02:09]} 28. Kf3 {[%clk 0:00:16]}  bxc4 {[%clk 0:02:05]} 29. Bxc4 {[%clk 0:00:16]}  Rd4 {[%clk 0:02:05]} 30. a3 {[%clk 0:00:08]}  Rxc4 {[%clk 0:02:03]} 0-1


[Site "https://www.chess.com"]